[Event "Rapid Shavuot-A 2023"]
[Site "Ramat Gan"]
[Date "2023.05.25"]
[Round "3.5"]
[White "Mindlin, Alon"]
[Black "Levitan, Tal"]
[Result "1-0"]
[ECO "D55"]
[WhiteElo "2435"]
[BlackElo "2328"]
[Annotator "TA"]
[PlyCount "79"]
[EventDate "2023.05.19"]
[EventType "swiss"]
[EventCountry "ISR"]
[SourceTitle "playchess.com"]
[Source "ChessBase"]
[SourceQuality "1"]
[TimeControl "900+5"]

{[%evp 15,79,-1,12,0,-13,-17,-8,-19,6,36,81,20,44,41,45,47,90,89,90,53,56,54,58,57,70,52,53,53,53,53,54,54,45,8,3,0,7,6,6,6,6,0,85,85,85,86,80,84,123,125,159,90,91,89,235,246,238,230,306,301,297,291,277,274,854,758]} 1. d4 {[%emt 0:00:02]} d5 {[%emt 0:00:07]} 2. c4 {[%emt 0:00:02]} e6 {[%emt 0:00:02]} 3. Nc3 {[%emt 0:00:03]} Be7 {[%emt 0:00:01]} 4. Nf3 {[%emt 0:00:19]} Nf6 {[%emt 0:00:02]} 5. Bg5 {[%emt 0:00:02]} O-O {[%emt 0:00:02]} 6. e3 {[%emt 0:00:01]} b6 {[%emt 0:00:02]} 7. Bxf6 {[%emt 0:00:14]} Bxf6 {[%emt 0:00:04]} 8. cxd5 {[%emt 0:00:10]} exd5 {[%emt 0:00:02]} 9. b4 {[%emt 0:00:14] D55: Queen's Gambit Declined: 4 Bg5 Be7: Lines without ...h6 and 6...h6 7 Bxf6.} c5 {[%emt 0:00:05]} 10. bxc5 {[%emt 0:00:29]} bxc5 {[%emt 0:00:02]} 11. Rc1 {[%emt 0:00:03][%cal Ba1c1,Bc1c3,Bc3d3,Bd3d2][%mdl 32] [#] The position is equal.} Bg4 $146 {[%emt 0:01:17] ...cxd4 is the strong threat.} ({Predecessor:} 11... c4 12. Be2 Bf5 13. O-O Nc6 14. Qa4 Qd7 15. Nd2 Rad8 16. Rfd1 Ne7 17. Qa5 Nc6 18. Qa4 Ne7 19. Qa5 Nc6 20. Qb5 Ne7 21. Qa5 {½-½ Gallasch,R (2035)-Skabs,D (2021) GER-chT U20 Muenster 2022 (3)}) 12. Be2 {[%emt 0:00:17]} Nc6 {[%emt 0:04:23]} 13. O-O {[%emt 0:00:50]} (13. dxc5 $16 {With the idea 0-0.} Qa5 14. Qd2) 13... cxd4 {[%emt 0:00:01]} 14. Nxd4 {[%emt 0:00:48][%cal Bf3d4,Bd4e2,Be2f4][%mdl 32] Excellent horsemanship.} Bxe2 {[%emt 0:00:58]} 15. Ndxe2 {[%emt 0:00:19]} Bxc3 {[%emt 0:02:20]} 16. Rxc3 {[%emt 0:00:40]} Rc8 {[%emt 0:00:55]} 17. Rd3 {[%emt 0:01:38]} Qa5 {[%emt 0:00:08]} 18. Qd2 {[%emt 0:00:50]} Qxd2 {[%emt 0:00:52]} 19. Rxd2 {[%emt 0:00:01]} Ne7 {[%emt 0:00:16]} 20. Nf4 {[%emt 0:00:22]} Rfd8 {[%emt 0:00:15]} 21. h4 {[%emt 0:00:13]} g6 {[%emt 0:01:45]} 22. g3 {[%emt 0:00:40]} Rc4 {[%emt 0:00:12]} 23. Rb1 {[%emt 0:00:33]} Rd7 {[%emt 0:00:18]} 24. Nd3 {[%emt 0:00:53] And now Ne5 would win.} Rdc7 {[%emt 0:00:10]} 25. Nf4 {[%emt 0:00:24]} Rc1+ {[%emt 0:00:43]} 26. Rxc1 {[%emt 0:00:15]} Rxc1+ $11 {[%emt 0:00:02][%mdl 4096] Endgame KRN-KRN} 27. Kg2 {[%emt 0:00:01]} Rc5 {[%emt 0:00:07]} 28. Rb2 {[%emt 0:00:04]} Rc7 {[%emt 0:00:07] Prevents Rb7} (28... Nc6 $11 {remains equal.}) 29. Rb8+ $16 {[%emt 0:01:24]} Kg7 {[%emt 0:00:02][%cal Od5d4]} 30. Rd8 {[%emt 0:00:02] White is more active.} Rc2 {[%emt 0:00:44]} 31. Rd7 {[%emt 0:00:17]} (31. Nxd5 Nxd5 32. Rxd5 Rxa2 $11) 31... Nc6 {[%emt 0:00:24]} 32. Rc7 {[%emt 0:00:51]} ({Of course not} 32. Rxd5 $6 Rxa2 33. Rc5 Nb4 $11) 32... d4 {[#]} 33. exd4 {[%emt 0:00:02]} (33. Ne6+ $142 $1 Kf6 34. Nd8 {[%mdl 64] Pin} (34. Nxd4 $2 {too greedy.} Nxd4 35. Rxa7 Nf5 $19) 34... dxe3 35. Rxf7+ (35. Rxc6+ $2 Rxc6 36. f4 Rc7 $19) 35... Ke5 36. Nxc6+ Rxc6 37. fxe3 (37. Rxa7 exf2 38. Kxf2 Ke4 $16)) 33... Nxd4 {[%emt 0:00:47]} 34. Rxa7 {[%emt 0:00:01]} Nf5 {[%emt 0:00:10] [#] Black cannot hold the game after this.} (34... Nb5 $16 35. Rd7 Rxa2) 35. Ne6+ $1 $18 {[%emt 0:00:14]} Kf6 {[%emt 0:00:13]} 36. Ng5 {[%emt 0:00:01]} Nd6 {[%emt 0:00:10]} 37. Nxh7+ {[%emt 0:00:23]} Kg7 {[%emt 0:00:09]} 38. Ng5 {[%emt 0:00:03]} Rb2 {[%emt 0:00:03]} 39. Rd7 {[%emt 0:00:09]} Rd2 {[%emt 0:00:12] [#]} (39... Rb6 40. a4 Kf8) 40. Nxf7 $1 {[%emt 0:00:07][%mdl 512] Weighted Error Value: White=0.10 (very precise) /Black=0.24 (precise)} 1-0

[Event "Rapid Shavuot-A 2023"]
[Site "Ramat Gan"]
[Date "2023.05.25"]
[Round "3.6"]
[White "Kochavi, Ori"]
[Black "Zemach, Roee"]
[Result "1/2-1/2"]
[ECO "C78"]
[WhiteElo "2423"]
[BlackElo "2261"]
[Annotator "TA"]
[PlyCount "149"]
[EventDate "2023.05.19"]
[EventType "swiss"]
[EventCountry "ISR"]
[SourceTitle "playchess.com"]
[Source "ChessBase"]
[SourceQuality "1"]
[TimeControl "900+5"]

{[%evp 17,149,38,33,0,23,13,30,17,6,0,12,8,17,16,20,12,15,6,14,14,12,0,0,0,6,2,2,-50,-51,-38,-39,-50,-39,-50,-43,-55,-37,-46,-33,-37,-37,-49,-8,-31,0,-8,-8,-16,-21,-24,0,-54,0,-33,-38,-30,-5,-2,-1,-1,-1,-5,-8,-27,0,0,0,0,0,0,0,0,0,0,0,0,0,0,0,0,0,0,0,0,0,0,0,0,0,0,0,0,0,0,0,0,0,-490,-436,-396,0,0,0,0,0,0,0,0,0,0,0,0,0,0,0,0,0,0,0,0,0,0,0,0,0,0,0,0,0,0,0,0,0,0]} 1. e4 {[%emt 0:00:01]} e5 {[%emt 0:00:01]} 2. Nf3 {[%emt 0:00:01]} Nc6 {[%emt 0:00:02]} 3. Bb5 {[%emt 0:00:02]} a6 {[%emt 0:00:03]} 4. Ba4 {[%emt 0:00:01]} Nf6 {[%emt 0:00:03]} 5. O-O {[%emt 0:00:02]} b5 {[%emt 0:00:02]} 6. Bb3 {[%emt 0:00:01]} Bc5 {[%emt 0:00:02]} 7. c3 {[%emt 0:00:01]} d6 {[%emt 0:00:04]} 8. a4 {[%emt 0:00:01]} Rb8 {[%emt 0:00:04]} 9. d4 {[%emt 0:00:01]} Bb6 {[%emt 0:00:05]} 10. a5 $1 {[%emt 0:00:00] 10.a5 is better than 10.axb5. C78: Ruy Lopez: Archangelsk and Möller Defences.} Ba7 {[%emt 0:00:11]} (10... Bxa5 $2 11. dxe5 (11. d5 Ne7 $18) 11... dxe5 12. Qxd8+ Kxd8 13. Bd5 (13. Bxf7 Bb6 $16) 13... Nxd5 14. exd5 $18) 11. h3 {[%emt 0:00:02]} Bb7 {[%emt 0:00:14]} 12. Be3 {[%emt 0:00:47] White has an edge.} Nxe4 {[%emt 0:00:08]} 13. Nbd2 {[%emt 0:02:41]} Nxd2 {[%emt 0:00:29]} 14. Qxd2 {[%emt 0:00:01]} O-O {[%emt 0:00:53]} 15. dxe5 {[%emt 0:00:13]} dxe5 {[%emt 0:01:06]} 16. Qxd8 {[%emt 0:00:01]} Rbxd8 {[%emt 0:00:07]} 17. Bxa7 {[%emt 0:00:02]} Nxa7 {[%emt 0:00:02]} 18. Nxe5 {[%emt 0:00:01] Threatening Rad1.} Bd5 {[%emt 0:01:33] [#]} 19. Bxd5 $146 {[%emt 0:00:42]} ({Predecessor:} 19. Bc2 Nc6 20. Nxc6 Bxc6 21. Rad1 Rfe8 22. Rxd8 Rxd8 23. Rd1 Rxd1+ 24. Bxd1 Kf8 25. f4 {1-0 Carlsen,M (2855)-Firouzja,A (2754) Norway Chess 9th 2021 (6)}) 19... Rxd5 {[%emt 0:00:02]} 20. Rfe1 {[%emt 0:00:02]} f6 {[%emt 0:00:44]} 21. Nf3 {[%emt 0:00:07]} Kf7 {[%emt 0:00:11]} 22. Red1 {[%emt 0:03:22]} (22. Nd4 $11) 22... Rfd8 $15 {[%emt 0:00:07]} 23. Rxd5 {[%emt 0:00:01]} Rxd5 {[%emt 0:00:02][%mdl 4096] Endgame KRN-KRN} 24. Kf1 {[%emt 0:00:02]} c5 {[%emt 0:00:36]} 25. Ke2 {[%emt 0:00:15][%cal Oc3c4]} Nc6 {[%emt 0:00:04]} 26. b3 {[%emt 0:00:11]} Ke6 {[%emt 0:03:05]} 27. Ne1 {[%emt 0:01:36]} b4 {[%emt 0:00:54]} 28. Nd3 {[%emt 0:00:01] And now Nf4+ would win.} Kd6 {[%emt 0:00:25]} 29. cxb4 {[%emt 0:00:14]} cxb4 {[%emt 0:00:15] Hoping for ...Nd4+.} 30. Ra4 {[%emt 0:01:02]} Rd4 {[%emt 0:02:06]} 31. Ke3 {[%emt 0:00:28]} f5 {[%emt 0:00:05]} 32. Ra2 {[%emt 0:01:16]} g5 {[%emt 0:00:10]} 33. g3 {[%emt 0:00:30]} Rd5 {[%emt 0:01:03]} 34. Ra4 {[%emt 0:00:57]} (34. f4 $11) 34... Rd4 {[%emt 0:00:08]} (34... f4+ $5 35. gxf4 gxf4+ 36. Nxf4 Rxa5 $15) 35. Ra2 {[%emt 0:00:01]} Re4+ {[%emt 0:00:25]} 36. Kd2 {[%emt 0:00:01]} Ne5 {[%emt 0:00:08]} (36... h5 $5 {[%cal Rh5h4]}) 37. Nxe5 $1 {[%emt 0:00:26]} Rxe5 $11 {[%emt 0:00:08] KR-KR} 38. Kd3 {[%emt 0:00:08]} Rc5 {[%emt 0:00:02]} 39. Kd4 {[%emt 0:00:54]} Rc3 {[%emt 0:00:35]} 40. Rd2 {[%emt 0:00:01]} Rc5 {[%emt 0:00:40]} (40... Rxb3 41. Kc4+ Kc6 42. Kxb3 $18) 41. Ra2 {[%emt 0:00:11]} Re5 {[%emt 0:00:20]} 42. Kc4 {[%emt 0:00:45]} Re4+ {[%emt 0:00:02]} 43. Kd3 {[%emt 0:00:01]} Ke5 {[%emt 0:00:14]} 44. Rc2 {[%emt 0:00:19]} Rd4+ {[%emt 0:00:07]} 45. Ke2 {[%emt 0:00:19]} Kd6 {[%emt 0:00:25]} 46. Rc8 {[%emt 0:00:23]} Rd5 {[%emt 0:00:21]} 47. Rb8 {[%emt 0:00:13]} Rxa5 {[%emt 0:00:10]} 48. Rxb4 {[%emt 0:00:03]} Rb5 {[%emt 0:00:05]} 49. Ra4 {[%emt 0:00:26]} a5 {[%emt 0:00:04]} 50. Kd2 {[%emt 0:00:08]} Rd5+ {[%emt 0:00:11]} 51. Kc3 {[%emt 0:00:05]} Kc6 {[%emt 0:00:03]} 52. h4 {[%emt 0:00:09]} h6 {[%emt 0:00:03]} 53. hxg5 {[%emt 0:00:01]} hxg5 {[%emt 0:00:01]} 54. g4 {[%emt 0:00:02]} fxg4 {[%emt 0:00:12]} 55. Rxg4 {[%emt 0:00:02]} Rf5 {[%emt 0:00:03]} 56. Rg3 {[%emt 0:00:14]} Kd5 {[%emt 0:00:06]} 57. Rg2 $2 {[%emt 0:00:04][%mdl 8192] [#]} (57. Rd3+ $11 Ke5 58. Re3+ Kd5 59. Rg3) 57... Ke4 $1 $19 {[%emt 0:00:01]} ({Worse is} 57... Rf3+ 58. Kc2 $11) 58. Rg3 {[%emt 0:00:07] [#]} Rc5+ $2 {[%emt 0:00:07]} ({Black should play} 58... Rf3+ $1 $19 59. Kc4 Kf4) 59. Kb2 $11 {[%emt 0:00:03] The position is equal.} Kf4 {[%emt 0:00:01]} 60. Rd3 {[%emt 0:00:08]} Re5 {[%emt 0:00:03] White must now prevent ...Re2+.} 61. Ka3 {[%emt 0:00:01]} Re2 {[%emt 0:00:10]} 62. Ka4 {[%emt 0:00:00]} Rxf2 {[%emt 0:00:05]} 63. Kxa5 {[%emt 0:00:01]} g4 {[%emt 0:00:02][%cal Bg5g4,Bg4g3][%mdl 32]} 64. b4 {[%emt 0:00:06]} g3 {[%emt 0:00:05]} 65. Rd8 {[%emt 0:00:15]} g2 {[%emt 0:00:13]} 66. Rg8 {[%emt 0:00:01]} Kf3 {[%emt 0:00:01]} 67. b5 {[%emt 0:00:02]} Ra2+ {[%emt 0:00:07]} 68. Kb6 {[%emt 0:00:01]} Ra4 {[%emt 0:00:01] ( -> ...Rg4)} 69. Rxg2 $1 {[%emt 0:00:02]} Kxg2 {[%emt 0:00:01] KR-KP} 70. Kc7 {[%emt 0:00:06]} Kf3 {[%emt 0:00:07]} 71. b6 $1 {[%emt 0:00:01]} Rc4+ {[%emt 0:00:01]} 72. Kd7 {[%emt 0:00:02]} ({Don't play} 72. Kb7 Ke4 73. Ka7 Ra4+ 74. Kb8 Kd5 $15) 72... Ke4 {[%emt 0:00:07]} 73. b7 {[%emt 0:00:01]} Rb4 {[%emt 0:00:02]} 74. Kc8 {[%emt 0:00:01]} Rxb7 {[%emt 0:00:03]} 75. Kxb7 {[%emt 0:00:41] Weighted Error Value: White=0.23 (precise) /Black=0.14 (very precise)} 1/2-1/2

[Event "Rapid Shavuot-A 2023"]
[Site "Ramat Gan"]
[Date "2023.05.25"]
[Round "3.7"]
[White "Iliaguev, Nisim"]
[Black "Dvoirys, Semen I."]
[Result "1/2-1/2"]
[ECO "D02"]
[WhiteElo "2402"]
[BlackElo "2470"]
[Annotator "TA"]
[PlyCount "71"]
[EventDate "2023.05.19"]
[EventType "swiss"]
[EventCountry "ISR"]
[SourceTitle "playchess.com"]
[Source "ChessBase"]
[SourceQuality "1"]
[TimeControl "900+5"]

{[%evp 11,71,-31,0,-6,0,-58,-21,-27,-28,-16,-7,0,-6,-8,0,-22,22,-89,-56,-58,-64,-75,-72,-86,-82,-78,-54,-41,-10,-22,-16,-18,0,0,0,0,0,0,0,-14,-7,-10,0,0,42,39,51,51,56,47,49,8,8,8,8,0,0,0,0,0,0,0]} 1. d4 {[%emt 0:00:03]} Nf6 {[%emt 0:00:01]} 2. g3 {[%emt 0:00:01]} c5 {[%emt 0:00:24]} 3. Nf3 {[%emt 0:00:05]} cxd4 {[%emt 0:00:05]} 4. Nxd4 {[%emt 0:00:02]} d5 {[%emt 0:00:20][%cal Bd7d5,Bd5c4][%mdl 32]} 5. Bg2 {[%emt 0:00:05]} e5 {[%emt 0:00:28]} 6. Nb3 {[%emt 0:00:01]} Nc6 {[%emt 0:01:08][%cal Bb8c6,Bc6d4,Bd4e2][%mdl 32]} 7. O-O {[%emt 0:00:04] D02: 1 d4 d5 2 Nf3 sidelines, including 2...Nf6 3 g3 and 2...Nf6 3 Bf4.} Be7 {[%emt 0:00:30]} 8. c4 {[%emt 0:00:01]} dxc4 {[%emt 0:00:20] [#] ...Qxd1 would be deadly.} 9. Qxd8+ $146 {[%emt 0:00:02]} ({Predecessor:} 9. N3d2 Be6 10. a3 O-O 11. Qc2 Nd4 12. Qd1 Qc7 13. Nc3 Rfd8 14. Qa4 a6 15. e3 {0-1 Kakulidis,E (2098)-Cramling Bellon,A (2035) Titled Tuesday intern op 10th Nov blitz 2020 (11)}) 9... Bxd8 {[%emt 0:00:42]} 10. N3d2 {[%emt 0:00:02]} Nd4 {[%emt 0:00:47]} 11. Nc3 {[%emt 0:00:14]} Be6 $36 {[%emt 0:01:36][%mdl 2048] Black is pushing.} 12. Bxb7 {[%emt 0:01:17]} Rb8 {[%emt 0:00:01]} 13. Ba6 {[%emt 0:01:22]} Ba5 {[%emt 0:00:06]} (13... Nc2 $5 {[%cal Rc2a1]} 14. Rb1 Ba5 $15) 14. a4 {[%emt 0:03:42]} (14. Bxc4 $11 Ke7 15. Bd3) 14... Bxc3 {[%emt 0:00:54]} (14... Bh3 {is more complex.} 15. Nxc4 Bxc3 16. Nd6+ Kd7) 15. bxc3 {[%emt 0:00:01]} Nxe2+ {[%emt 0:00:02] Excellent horsemanship.} 16. Kg2 {[%emt 0:00:24]} Bd5+ {[%emt 0:00:06]} 17. Kh3 {[%emt 0:01:33]} Nxc1 {[%emt 0:02:35]} (17... O-O {is interesting.} 18. Bxc4 Nxc3 19. Re1 Rfc8) 18. Raxc1 {[%emt 0:00:15] White is weak on the light squares} O-O {[%emt 0:00:06]} 19. Bxc4 {[%emt 0:00:39]} Rfc8 {[%emt 0:00:08]} 20. Bxd5 {[%emt 0:00:13]} Nxd5 {[%emt 0:00:01]} 21. c4 {[%emt 0:00:21]} Nb4 {[%emt 0:00:02]} 22. Ne4 {[%emt 0:00:52]} Rc6 {[%emt 0:00:41]} 23. Rfd1 {[%emt 0:00:32]} f5 {[%emt 0:00:14]} 24. Nd6 {[%emt 0:00:41]} g6 {[%emt 0:00:08]} 25. f3 {[%emt 0:00:33]} Kf8 {[%emt 0:01:23]} 26. c5 {[%emt 0:00:33]} Na6 {[%emt 0:00:30]} 27. Rd5 {[%emt 0:00:13]} Rd8 {[%emt 0:00:26]} (27... Nb4 $5 {[%cal Rb4d5]} 28. Rd2 (28. Rxe5 $2 {too greedy.} Nd3 $19) 28... Ke7 $11) 28. Rxe5 {[%emt 0:00:48]} Rxc5 {[%emt 0:00:10][%mdl 64] [#] Remove Defender} 29. Rcxc5 Nxc5 {[%emt 0:00:01]} 30. Rxc5 {[%emt 0:01:48]} Rxd6 $14 {[%emt 0:00:02][%mdl 4096] Endgame KR-KR} 31. Rc7 {[%emt 0:00:13]} Ra6 {[%emt 0:00:14] The position is equal.} 32. Rxh7 {[%emt 0:00:09] aiming for Kh4.} Rxa4 {[%emt 0:00:02]} 33. Rb7 {[%emt 0:00:04]} g5 {[%emt 0:00:58]} 34. f4 {[%emt 0:00:47][%mdl 64] [#] Deflection} gxf4 {[%emt 0:00:15]} 35. gxf4 {[%emt 0:00:01]} Rxf4 {[%emt 0:00:17]} 36. Rxa7 {[%emt 0:00:01] Weighted Error Value: White=0.15 (very precise) /Black=0.12 (very precise)} 1/2-1/2

[Event "Rapid Shavuot-A 2023"]
[Site "Ramat Gan"]
[Date "2023.05.25"]
[Round "3.8"]
[White "Parkhov, Yair"]
[Black "Kereth, Oren"]
[Result "1/2-1/2"]
[ECO "E47"]
[WhiteElo "2505"]
[BlackElo "2080"]
[Annotator "TA"]
[PlyCount "179"]
[EventDate "2023.05.19"]
[EventType "swiss"]
[EventCountry "ISR"]
[SourceTitle "playchess.com"]
[Source "ChessBase"]
[SourceQuality "1"]
[TimeControl "900+5"]

{[%evp 13,179,49,62,43,35,45,67,70,105,106,117,117,120,102,96,99,94,95,102,78,91,39,97,16,94,95,105,102,115,112,163,158,165,168,170,168,226,181,207,194,197,190,231,225,226,218,267,270,267,262,234,195,214,179,248,137,187,200,189,162,165,166,175,149,120,132,168,0,263,266,341,255,393,377,395,392,422,455,353,176,374,267,424,424,408,388,29974,29975,29973,29974,29971,29972,29976,29977,29976,29977,29976,6207,5422,171,171,8,8,8,8,8,53,8,23,8,8,8,232,8,64,0,8,8,8,8,8,8,8,8,8,0,8,0,8,0,0,0,8,0,8,0,8,0,8,8,8,8,8,8,8,8,8,0,0,0,8,0,8,0,0,0,8,8,8,8,8,8,8,8,8,8,8,8]} 1. d4 {[%emt 0:00:01]} Nf6 {[%emt 0:00:06]} 2. c4 {[%emt 0:00:02]} e6 {[%emt 0:00:07][%cal Be7e6,Be6e5][%mdl 32]} 3. Nc3 {[%emt 0:00:01]} Bb4 {[%emt 0:00:08]} 4. e3 {[%emt 0:00:01]} O-O {[%emt 0:00:23]} 5. Bd3 {[%emt 0:00:02]} d6 {[%emt 0:00:13]} 6. Nge2 {[%emt 0:00:02]} e5 {[%emt 0:01:04]} 7. O-O {[%emt 0:00:03]} Nc6 {[%emt 0:00:22]} 8. Qc2 {[%emt 0:00:04] E47: Nimzo-Indian: Rubinstein: 5 Bd3 without ...d5.} Bxc3 {[%emt 0:00:30]} 9. Qxc3 {[%emt 0:00:11] [#]} Bg4 $146 {[%emt 0:00:57] White must now prevent ...e4.} ({Predecessor:} 9... Qe7 10. b4 Re8 11. b5 Nd8 12. a4 exd4 13. exd4 Bg4 14. Ng3 h6 15. a5 a6 {1-0 Indjic,A (2607)-Kazakouski,V (2495) Titled Tuesday intern op 25th May blitz 2021 (6)}) 10. f3 {[%emt 0:00:31] White is slightly better.} Bh5 {[%emt 0:00:19][%cal Oe5e4]} 11. d5 {[%emt 0:00:08]} Nb8 {[%emt 0:00:18][%cal Oe5e4]} 12. e4 {[%emt 0:00:18]} a5 {[%emt 0:00:14]} 13. g4 {[%emt 0:00:01]} Bg6 {[%emt 0:00:06]} 14. Ng3 {[%emt 0:00:14]} c6 {[%emt 0:00:14]} 15. h4 {[%emt 0:01:16] Hoping for h5.} h5 {[%emt 0:01:22]} 16. Bg5 {[%emt 0:00:02] Threatens to win with gxh5.} Nbd7 {[%emt 0:00:14]} 17. Kg2 {[%emt 0:00:34] White is more active.} (17. Qd2 $16) 17... Qc7 {[%emt 0:00:29]} ({Black should play} 17... Qb6 $14) 18. Qd2 $16 {[%emt 0:08:25]} Rfe8 {[%emt 0:04:11]} (18... hxg4 $11 19. fxg4 Nxg4) 19. Qe2 {[%emt 0:00:48]} Kh7 {[%emt 0:03:11]} 20. Rf2 {[%emt 0:00:21]} Rh8 {[%emt 0:00:38]} 21. Bd2 {[%emt 0:00:26]} Kg8 {[%emt 0:00:43]} (21... Nc5 $16 {keeps fighting.}) 22. g5 $18 {[%emt 0:00:02]} Ne8 {[%emt 0:00:27]} 23. Raf1 {[%emt 0:00:06]} Nc5 {[%emt 0:00:35]} 24. Bb1 {[%emt 0:00:22]} b5 {[%emt 0:00:05]} (24... Nd7 $142 25. f4 exf4) 25. Be3 {[%emt 0:00:08]} bxc4 {[%emt 0:00:07]} 26. Qxc4 {[%emt 0:00:03]} cxd5 {[%emt 0:00:12]} 27. Qxd5 {[%emt 0:00:04]} Rb8 {[%emt 0:00:00]} 28. Nf5 {[%emt 0:00:43]} Ne6 {[%emt 0:00:02]} 29. Rc1 {[%emt 0:00:11]} Qd7 {[%emt 0:00:03]} 30. Qxa5 {[%emt 0:00:28]} Kh7 {[%emt 0:00:08]} 31. b3 {[%emt 0:00:17]} f6 {[%emt 0:00:05]} 32. Qd2 {[%emt 0:00:24]} Rd8 {[%emt 0:00:05]} 33. Kg1 {[%emt 0:00:27] Black is weak on the dark squares} d5 {[%emt 0:00:04]} (33... Rf8 $142 34. a4 fxg5 35. hxg5 (35. Bxg5 Nxg5 36. Qxg5 Bxf5 $16) 35... Rb8) 34. exd5 {[%emt 0:00:12]} (34. Qxd5 $1 $18 N8c7 35. Qxd7 Rxd7 36. gxf6) 34... Nf4 {[%emt 0:00:07]} (34... Nxg5 $16 35. hxg5 Bxf5) 35. Bxf4 {[%emt 0:00:04][%cal Be3f4,Bf4g3,Bg3e5][%mdl 32]} Bxf5 {[%emt 0:00:03]} 36. Bg3 {[%emt 0:00:17]} Bxb1 {[%emt 0:00:04]} 37. Rxb1 {[%emt 0:00:01]} Nd6 {[%emt 0:00:07]} 38. Kg2 {[%emt 0:00:15][%cal Bg1g2,Bg2g3,Bg3h2][%mdl 32]} Nf5 {[%emt 0:00:04]} 39. Qd3 {[%emt 0:00:25]} fxg5 {[%emt 0:00:01]} 40. hxg5 $2 {[%emt 0:00:03]} (40. Bxe5 Rhe8 41. Re2 gxh4 $16) (40. Re1 $18) 40... g6 $2 {[%emt 0:00:11][%mdl 8192]} (40... Qf7 $1 $11) 41. Bxe5 {[%emt 0:00:02]} Nh4+ {[%emt 0:00:03]} 42. Kg3 {[%emt 0:00:02]} Nf5+ {[%emt 0:00:01]} (42... Rhe8 $142 43. f4 Nf5+ 44. Kh2 Qa7) 43. Kh2 $1 {[%emt 0:00:01]} Rhe8 {[%emt 0:00:06]} 44. f4 {[%emt 0:00:02]} Qxd5 {[%emt 0:00:08]} 45. Qxd5 {[%emt 0:00:02]} Rxd5 {[%emt 0:00:01]} 46. Rc1 {[%emt 0:00:01]} (46. b4 $142) 46... Rd7 $2 {[%emt 0:00:09]} (46... Ne3 47. Re2 (47. Rc7+ Kg8 $16) 47... Ng4+ 48. Kh3 Nxe5) 47. Rfc2 {[%emt 0:00:04]} Ne3 {[%emt 0:00:06]} (47... Kg8 {was worth a try.} 48. Kh1 Kf7) 48. Rc7 {[%emt 0:00:07]} Ng4+ {[%emt 0:00:04]} 49. Kg3 {[%emt 0:00:01]} Rde7 {[%emt 0:00:06]} (49... Rxc7 $18 50. Rxc7+ Kg8 51. Rg7+ Kf8) 50. Rxe7+ Rxe7 {[%emt 0:00:01]} 51. Rc7 {[%emt 0:00:04]} Rxc7 {[%emt 0:00:09]} 52. Bxc7 {[%emt 0:00:02] KB-KN} Kg7 {[%emt 0:00:03]} 53. a4 {[%emt 0:00:04]} Ne3 {[%emt 0:00:02]} 54. a5 {[%emt 0:00:04]} Nd5 {[%emt 0:00:03]} 55. Bd8 {[%emt 0:00:06]} (55. Be5+ $142 Kg8 56. a6 Nb6 57. Bd4 Nc8 58. b4 Kf7 59. b5 Ke7 60. b6) 55... Nb4 {[%emt 0:00:05] [#]} 56. a6 $2 {[%emt 0:00:07]} Nxa6 {[%emt 0:00:04] [#]} 57. Be7 $2 {[%emt 0:00:14]} (57. Kh4 $1 $18) 57... Kf7 $11 {[%emt 0:00:04]} 58. Ba3 {[%emt 0:00:10][%cal Of4f5]} Ke6 {[%emt 0:00:01]} 59. Kf3 {[%emt 0:00:04]} Kd5 {[%emt 0:00:09]} 60. Bf8 {[%emt 0:00:25][%cal Of4f5]} Nc7 {[%emt 0:00:10]} 61. b4 {[%emt 0:00:05][%cal Of4f5]} Nb5 {[%emt 0:00:10]} 62. Bc5 {[%emt 0:00:05][%cal Of4f5] Strongly threatening f5!} Nc7 $2 {[%emt 0:00:04]} (62... Ke6 $11 {and Black has nothing to worry.}) 63. Ke3 $2 {[%emt 0:00:07]} (63. f5 $1 $18 {[%cal Rf5g6]} gxf5 64. Kg3 (64. Kf4 Ke6 $11)) 63... Ne6 {[%emt 0:00:03]} (63... Ke6 $11) 64. Be7 {[%emt 0:00:02]} (64. f5 $1 $14 gxf5 65. g6) 64... Ng7 {[%emt 0:00:05] The position is equal.} 65. Kf3 {[%emt 0:00:05]} Nf5 {[%emt 0:00:01]} 66. Bc5 {[%emt 0:00:06]} Nh4+ {[%emt 0:00:04]} 67. Kf2 {[%emt 0:00:11]} Nf5 {[%emt 0:00:01]} 68. Be3 {[%emt 0:00:09]} Kc4 {[%emt 0:00:09]} 69. Bc5 {[%emt 0:00:02]} Kd5 {[%emt 0:00:04]} 70. Kf3 {[%emt 0:00:03]} Nh4+ {[%emt 0:00:01]} 71. Ke3 {[%emt 0:00:04]} Ng2+ {[%emt 0:00:03]} 72. Kf3 {[%emt 0:00:03]} Nh4+ {[%emt 0:00:01]} 73. Kf2 {[%emt 0:00:11]} (73. Kg3 $5 Nf5+ $8 74. Kf3 $14) 73... Nf5 {[%emt 0:00:01]} 74. Bf8 {[%emt 0:00:03]} Kc4 {[%emt 0:00:08]} 75. Ke2 {[%emt 0:00:07]} Ng3+ {[%emt 0:00:19]} 76. Kf3 {[%emt 0:00:01]} Nf5 {[%emt 0:00:04]} 77. Ke4 {[%emt 0:00:02]} Kb5 {[%emt 0:00:08]} 78. Bc5 {[%emt 0:00:03]} Kc4 {[%emt 0:00:01]} 79. Ke5 {[%emt 0:00:10] Kf6 would be deadly.} h4 {[%emt 0:00:02]} 80. Kf6 {[%emt 0:00:06]} h3 {[%emt 0:00:01] ( -> ...h2)} 81. Bg1 $1 {[%emt 0:00:01]} (81. Kxg6 $2 {perishes.} Nd4 82. Bf8 h2 $19) 81... Nh4 {[%emt 0:00:08]} 82. Bh2 {[%emt 0:00:04]} Kxb4 {[%emt 0:00:04]} 83. Bg3 {[%emt 0:00:03]} (83. f5 $5 gxf5 84. g6 Nxg6 85. Kxg6 $11) 83... Nf5 {[%emt 0:00:01]} 84. Bh2 {[%emt 0:00:01]} Nh4 {[%emt 0:00:01] [#]} 85. f5 $1 {[%emt 0:00:15]} gxf5 {[%emt 0:00:12]} (85... Nxf5 86. Kxg6) 86. Bg3 {[%emt 0:00:09]} Kc3 {[%emt 0:00:15]} 87. g6 {[%emt 0:00:03]} Nxg6 {[%emt 0:00:02]} 88. Kxg6 {[%emt 0:00:06]} h2 {[%emt 0:00:01]} 89. Bxh2 {[%emt 0:00:01]} f4 {[%emt 0:00:01]} 90. Bxf4 {[%emt 0:00:01] White really could win this.   Weighted Error Value: White=0.40/Black=0.45} 1/2-1/2